Workbook

Sheet Sheet1
E3: 12
D4: vds | E4: ids
D5: 0 | E5: =$E$3*$D5 -> 0 | F5: =$E$3*$D5 -> 0 | G5: 0 | H5: 0 | I5: 0 | J5: =$E$3*$D5 -> 0 | L5: =-13/19*D5+13 -> 13
D6: 0.1 | E6: =$E$3*$D6 -> 1.2 | F6: 1.2 | G6: 1.2 | H6: 1.2 | I6: 1.2 | J6: 1.5 | L6: 12.93157895
D7: 0.2 | E7: 2.4 | F7: 2.4 | G7: 2.4 | H7: 2.4 | I7: 2.4 | J7: 1.8 | L7: 12.86315789
D8: 0.3 | E8: 3.6 | F8: 3.6 | G8: 3.6 | H8: 3.8 | I8: 3 | J8: 2 | L8: 12.79473684
D9: 0.4 | E9: 4.8 | F9: 4.8 | G9: 4.8 | H9: 4.5 | I9: 3.5 | J9: 2 | L9: 12.72631579
D10: 0.5 | E10: 6 | F10: 6 | G10: 6 | H10: 5 | I10: 3.8 | J10: 2 | L10: 12.65789474
D11: 0.6 | E11: 7.2 | F11: 7.2 | G11: 7.5 | H11: 5.6 | I11: 3.9 | J11: 2 | L11: 12.58947368
D12: 0.7 | E12: 8.4 | F12: 8.4 | G12: 7.8 | H12: 5.8 | I12: 4 | J12: 2 | L12: 12.52105263
D13: 0.8 | E13: 9.6 | F13: 9.5 | G13: 7.9 | H13: 5.9 | I13: 4 | J13: 2 | L13: 12.45263158
D14: 0.9 | E14: 10.8 | F14: 9.7 | G14: 8 | H14: 6 | I14: 4 | J14: 2 | L14: 12.38421053
D15: 1 | E15: 11.5 | F15: 9.9 | G15: 8 | H15: 6 | I15: 4 | J15: 2 | L15: 12.31578947
D16: 1 | E16: 11.7 | F16: 9.9 | G16: 8 | H16: 6 | I16: 4 | J16: 2 | L16: 12.31578947
D17: 1.2 | E17: 11.9 | F17: 10 | G17: 8 | H17: 6 | I17: 4 | J17: 2 | L17: 12.17894737
D18: 1.4 | E18: 12 | F18: 10 | G18: 8 | H18: 6 | I18: 4 | J18: 2 | L18: 12.04210526
D19: 1.6 | E19: 12 | F19: 10 | G19: 8 | H19: 6 | I19: 4 | J19: 2 | L19: 11.90526316
D20: 1.8 | E20: 12 | F20: 10 | G20: 8 | H20: 6 | I20: 4 | J20: 2 | L20: 11.76842105
D21: 2 | E21: 12 | F21: 10 | G21: 8 | H21: 6 | I21: 4 | J21: 2 | L21: 11.63157895
D22: 2.2 | E22: 12 | F22: 10 | G22: 8 | H22: 6 | I22: 4 | J22: 2 | L22: 11.49473684
D23: 2.4 | E23: 12 | F23: 10 | G23: 8 | H23: 6 | I23: 4 | J23: 2 | L23: 11.35789474
D24: 2.6 | E24: 12 | F24: 10 | G24: 8 | H24: 6 | I24: 4 | J24: 2 | L24: 11.22105263
D25: 2.8 | E25: 12 | F25: 10 | G25: 8 | H25: 6 | I25: 4 | J25: 2 | L25: 11.08421053
D26: 3 | E26: 12 | F26: 10 | G26: 8 | H26: 6 | I26: 4 | J26: 2 | L26: 10.94736842
D27: 3.2 | E27: 12 | F27: 10 | G27: 8 | H27: 6 | I27: 4 | J27: 2 | L27: 10.81052632
D28: 3.4 | E28: 12 | F28: 10 | G28: 8 | H28: 6 | I28: 4 | J28: 2 | L28: 10.67368421
D29: 3.6 | E29: 12 | F29: 10 | G29: 8 | H29: 6 | I29: 4 | J29: 2 | L29: 10.53684211
D30: 3.8 | E30: 12 | F30: 10 | G30: 8 | H30: 6 | I30: 4 | J30: 2 | L30: 10.4
D31: 4 | E31: 12 | F31: 10 | G31: 8 | H31: 6 | I31: 4 | J31: 2 | L31: 10.26315789 | O31: Q | P31: =19/13*(13-Q31) -> 10.23076923 | Q31: 6
D32: 4.2 | E32: 12 | F32: 10 | G32: 8 | H32: 6 | I32: 4 | J32: 2 | L32: 10.12631579 | P32: =19/13*(13-Q32) -> 7.307692308 | Q32: 8 | R32: =19/13*(13-S32) -> 13.15384615 | S32: 4 | U32: =$P$31-($R$32-$P$32)/2*SIN(2*PI()/8*V32) -> 10.23076923 | V32: 4
D33: 4.4 | E33: 12 | F33: 10 | G33: 8 | H33: 6 | I33: 4 | J33: 2 | L33: 9.989473684 | P33: =P32 -> 7.307692308 | Q33: -4 | R33: =R32 -> 13.15384615 | S33: -4 | U33: =$P$31-($R$32-$P$32)/2*SIN(2*PI()/8*V33) -> 9.773499256 | V33: 3.8
D34: 4.6 | E34: 12 | F34: 10 | G34: 8 | H34: 6 | I34: 4 | J34: 2 | L34: 9.852631579 | P34: =19/13*(13-Q34) -> 10.23076923 | Q34: 6 | U34: 9.327488786 | V34: 3.6
D35: 4.8 | E35: 12 | F35: 10 | G35: 8 | H35: 6 | I35: 4 | J35: 2 | L35: 9.715789474 | P35: =P34 -> 10.23076923 | Q35: -4 | U35: 8.903720078 | V35: 3.4
D36: 5 | E36: 12 | F36: 10 | G36: 8 | H36: 6 | I36: 4 | J36: 2 | L36: 9.578947368 | U36: 8.512627724 | V36: 3.2
D37: 5.2 | E37: 12 | F37: 10 | G37: 8 | H37: 6 | I37: 4 | J37: 2 | L37: =-13/19*D37+13 -> 9.442105263 | U37: 8.163841717 | V37: 3
D38: 5.4 | E38: 12 | F38: 10 | G38: 8 | H38: 6 | I38: 4 | J38: 2 | L38: 9.305263158 | U38: 7.865950324 | V38: 2.8
D39: 5.6 | E39: 12 | F39: 10 | G39: 8 | H39: 6 | I39: 4 | J39: 2 | L39: 9.168421053 | U39: 7.626288622 | V39: 2.6
D40: 5.8 | E40: 12 | F40: 10 | G40: 8 | H40: 6 | I40: 4 | J40: 2 | L40: 9.031578947 | U40: 7.450757875 | V40: 2.4
D41: 6 | E41: 12 | F41: 10 | G41: 8 | H41: 6 | I41: 4 | J41: 2 | L41: 8.894736842 | U41: 7.343680235 | V41: 2.2
D42: 6.2 | E42: 12 | F42: 10 | G42: 8 | H42: 6 | I42: 4 | J42: 2 | L42: 8.757894737 | U42: 7.307692308 | V42: 2
D43: 6.4 | E43: 12 | F43: 10 | G43: 8 | H43: 6 | I43: 4 | J43: 2 | L43: 8.621052632 | U43: 7.343680235 | V43: 1.8
D44: 6.6 | E44: 12 | F44: 10 | G44: 8 | H44: 6 | I44: 4 | J44: 2 | L44: 8.484210526 | U44: 7.450757875 | V44: 1.6
D45: 6.8 | E45: 12 | F45: 10 | G45: 8 | H45: 6 | I45: 4 | J45: 2 | L45: 8.347368421 | U45: 7.626288622 | V45: 1.4
D46: 7 | E46: 12 | F46: 10 | G46: 8 | H46: 6 | I46: 4 | J46: 2 | L46: 8.210526316 | U46: 7.865950324 | V46: 1.2
D47: 7.2 | E47: 12 | F47: 10 | G47: 8 | H47: 6 | I47: 4 | J47: 2 | L47: 8.073684211 | U47: 8.163841717 | V47: 1
D48: 7.4 | E48: 12 | F48: 10 | G48: 8 | H48: 6 | I48: 4 | J48: 2 | L48: 7.936842105 | U48: 8.512627724 | V48: 0.8
D49: 7.6 | E49: 12 | F49: 10 | G49: 8 | H49: 6 | I49: 4 | J49: 2 | L49: 7.8 | U49: 8.903720078 | V49: 0.6
D50: 7.8 | E50: 12 | F50: 10 | G50: 8 | H50: 6 | I50: 4 | J50: 2 | L50: 7.663157895 | U50: 9.327488786 | V50: 0.4
D51: 8 | E51: 12 | F51: 10 | G51: 8 | H51: 6 | I51: 4 | J51: 2 | L51: 7.526315789 | U51: 9.773499256 | V51: 0.2
D52: 8.2 | E52: 12 | F52: 10 | G52: 8 | H52: 6 | I52: 4 | J52: 2 | L52: 7.389473684 | U52: 10.23076923 | V52: 0
D53: 8.4 | E53: 12 | F53: 10 | G53: 8 | H53: 6 | I53: 4 | J53: 2 | L53: 7.252631579 | U53: 10.68803921 | V53: -0.2
D54: 8.6 | E54: 12 | F54: 10 | G54: 8 | H54: 6 | I54: 4 | J54: 2 | L54: 7.115789474 | U54: 11.13404968 | V54: -0.4
D55: 8.8 | E55: 12 | F55: 10 | G55: 8 | H55: 6 | I55: 4 | J55: 2 | L55: 6.978947368 | U55: 11.55781838 | V55: -0.6
D56: 9 | E56: 12 | F56: 10 | G56: 8 | H56: 6 | I56: 4 | J56: 2 | L56: 6.842105263 | U56: 11.94891074 | V56: -0.8
D57: 9.2 | E57: 12 | F57: 10 | G57: 8 | H57: 6 | I57: 4 | J57: 2 | L57: 6.705263158 | U57: 12.29769675 | V57: -1
D58: 9.4 | E58: 12 | F58: 10 | G58: 8 | H58: 6 | I58: 4 | J58: 2 | L58: 6.568421053 | U58: 12.59558814 | V58: -1.2
D59: 9.6 | E59: 12 | F59: 10 | G59: 8 | H59: 6 | I59: 4 | J59: 2 | L59: 6.431578947 | U59: 12.83524984 | V59: -1.4
D60: 9.8 | E60: 12 | F60: 10 | G60: 8 | H60: 6 | I60: 4 | J60: 2 | L60: 6.294736842 | U60: 13.01078059 | V60: -1.6
D61: 10 | E61: 12 | F61: 10 | G61: 8 | H61: 6 | I61: 4 | J61: 2 | L61: 6.157894737 | U61: 13.11785823 | V61: -1.8
D62: 10.2 | E62: 12 | F62: 10 | G62: 8 | H62: 6 | I62: 4 | J62: 2 | L62: 6.021052632 | U62: 13.15384615 | V62: -2
D63: 10.4 | E63: 12 | F63: 10 | G63: 8 | H63: 6 | I63: 4 | J63: 2 | L63: 5.884210526 | U63: 13.11785823 | V63: -2.2
D64: 10.6 | E64: 12 | F64: 10 | G64: 8 | H64: 6 | I64: 4 | J64: 2 | L64: 5.747368421 | U64: 13.01078059 | V64: -2.4
D65: 10.8 | E65: 12 | F65: 10 | G65: 8 | H65: 6 | I65: 4 | J65: 2 | L65: 5.610526316 | U65: 12.83524984 | V65: -2.6
D66: 11 | E66: 12 | F66: 10 | G66: 8 | H66: 6 | I66: 4 | J66: 2 | L66: 5.473684211 | U66: 12.59558814 | V66: -2.8
D67: 11.2 | E67: 12 | F67: 10 | G67: 8 | H67: 6 | I67: 4 | J67: 2 | L67: 5.336842105 | U67: 12.29769675 | V67: -3
D68: 11.4 | E68: 12 | F68: 10 | G68: 8 | H68: 6 | I68: 4 | J68: 2 | L68: 5.2 | U68: 11.94891074 | V68: -3.2
D69: 11.6 | E69: 12 | F69: 10 | G69: 8 | H69: 6 | I69: 4 | J69: 2 | L69: 5.063157895 | U69: 11.55781838 | V69: -3.4
D70: 11.8 | E70: 12 | F70: 10 | G70: 8 | H70: 6 | I70: 4 | J70: 2 | L70: =-13/19*D70+13 -> 4.926315789 | U70: 11.13404968 | V70: -3.6
D71: 12 | E71: 12 | F71: 10 | G71: 8 | H71: 6 | I71: 4 | J71: 2 | K71: =6+2*SIN(2*PI()/8*D71+PI()) -> 6 | L71: 4.789473684 | U71: 10.68803921 | V71: -3.8
D72: 12.2 | E72: 12 | F72: 10 | G72: 8 | H72: 6 | I72: 4 | J72: 2 | K72: =6+2*SIN(2*PI()/8*D72+PI()) -> 6.31286893 | L72: 4.652631579 | U72: 10.23076923 | V72: -4
D73: 12.4 | E73: 12 | F73: 10 | G73: 8 | H73: 6 | I73: 4 | J73: 2 | K73: 6.618033989 | L73: 4.515789474
D74: 12.6 | E74: 12 | F74: 10 | G74: 8 | H74: 6 | I74: 4 | J74: 2 | K74: 6.907980999 | L74: 4.378947368
D75: 12.8 | E75: 12 | F75: 10 | G75: 8 | H75: 6 | I75: 4 | J75: 2 | K75: 7.175570505 | L75: 4.242105263
D76: 13 | E76: 12 | F76: 10 | G76: 8 | H76: 6 | I76: 4 | J76: 2 | K76: 7.414213562 | L76: 4.105263158
D77: 13.2 | E77: 12 | F77: 10 | G77: 8 | H77: 6 | I77: 4 | J77: 2 | K77: 7.618033989 | L77: 3.968421053
D78: 13.4 | E78: 12 | F78: 10 | G78: 8 | H78: 6 | I78: 4 | J78: 2 | K78: 7.782013048 | L78: 3.831578947
D79: 13.6 | E79: 12 | F79: 10 | G79: 8 | H79: 6 | I79: 4 | J79: 2 | K79: 7.902113033 | L79: 3.694736842
D80: 13.8 | E80: 12 | F80: 10 | G80: 8 | H80: 6 | I80: 4 | J80: 2 | K80: 7.975376681 | L80: 3.557894737
D81: 14 | E81: 12 | F81: 10 | G81: 8 | H81: 6 | I81: 4 | J81: 2 | K81: 8 | L81: 3.421052632
D82: 14.2 | E82: 12 | F82: 10 | G82: 8 | H82: 6 | I82: 4 | J82: 2 | K82: 7.975376681 | L82: 3.284210526
D83: 14.4 | E83: 12 | F83: 10 | G83: 8 | H83: 6 | I83: 4 | J83: 2 | K83: 7.902113033 | L83: 3.147368421
D84: 14.6 | E84: 12 | F84: 10 | G84: 8 | H84: 6 | I84: 4 | J84: 2 | K84: 7.782013048 | L84: 3.010526316
D85: 14.8 | E85: 12 | F85: 10 | G85: 8 | H85: 6 | I85: 4 | J85: 2 | K85: 7.618033989 | L85: 2.873684211
D86: 15 | E86: 12 | F86: 10 | G86: 8 | H86: 6 | I86: 4 | J86: 2 | K86: 7.414213562 | L86: 2.736842105
D87: 15.2 | E87: 12 | F87: 10 | G87: 8 | H87: 6 | I87: 4 | J87: 2 | K87: 7.175570505 | L87: 2.6
D88: 15.4 | E88: 12 | F88: 10 | G88: 8 | H88: 6 | I88: 4 | J88: 2 | K88: 6.907980999 | L88: 2.463157895
D89: 15.6 | E89: 12 | F89: 10 | G89: 8 | H89: 6 | I89: 4 | J89: 2 | K89: 6.618033989 | L89: 2.326315789
D90: 15.8 | E90: 12 | F90: 10 | G90: 8 | H90: 6 | I90: 4 | J90: 2 | K90: 6.31286893 | L90: 2.189473684
D91: 16 | E91: 12 | F91: 10 | G91: 8 | H91: 6 | I91: 4 | J91: 2 | K91: 6 | L91: 2.052631579
D92: 16.2 | E92: 12 | F92: 10 | G92: 8 | H92: 6 | I92: 4 | J92: 2 | K92: 5.68713107 | L92: 1.915789474
D93: 16.4 | E93: 12 | F93: 10 | G93: 8 | H93: 6 | I93: 4 | J93: 2 | K93: 5.381966011 | L93: 1.778947368
D94: 16.6 | E94: 12 | F94: 10 | G94: 8 | H94: 6 | I94: 4 | J94: 2 | K94: 5.092019001 | L94: 1.642105263
D95: 16.8 | E95: 12 | F95: 10 | G95: 8 | H95: 6 | I95: 4 | J95: 2 | K95: 4.824429495 | L95: 1.505263158
D96: 17 | E96: 12 | F96: 10 | G96: 8 | H96: 6 | I96: 4 | J96: 2 | K96: 4.585786438 | L96: 1.368421053
D97: 17.2 | E97: 12 | F97: 10 | G97: 8 | H97: 6 | I97: 4 | J97: 2 | K97: 4.381966011 | L97: 1.231578947
D98: 17.4 | E98: 12 | F98: 10 | G98: 8 | H98: 6 | I98: 4 | J98: 2 | K98: 4.217986952 | L98: 1.094736842
D99: 17.6 | E99: 12 | F99: 10 | G99: 8 | H99: 6 | I99: 4 | J99: 2 | K99: 4.097886967 | L99: 0.9578947368
D100: 17.8 | E100: 12 | F100: 10 | G100: 8 | H100: 6 | I100: 4 | J100: 2 | K100: 4.024623319 | L100: 0.8210526316
D101: 18 | E101: 12 | F101: 10 | G101: 8 | H101: 6 | I101: 4 | J101: 2 | K101: 4 | L101: 0.6842105263
D102: 18.2 | E102: 12 | F102: 10 | G102: 8 | H102: 6 | I102: 4 | J102: 2 | K102: 4.024623319 | L102: 0.5473684211
D103: 18.4 | E103: 12 | F103: 10 | G103: 8 | H103: 6 | I103: 4 | J103: 2 | K103: 4.097886967 | L103: 0.4105263158
D104: 18.6 | E104: 12 | F104: 10 | G104: 8 | H104: 6 | I104: 4 | J104: 2 | K104: 4.217986952 | L104: 0.2736842105
D105: 18.8 | E105: 12 | F105: 10 | G105: 8 | H105: 6 | I105: 4 | J105: 2 | K105: 4.381966011 | L105: 0.1368421053
D106: 19 | E106: 12 | F106: 10 | G106: 8 | H106: 6 | I106: 4 | J106: 2 | K106: 4.585786438 | L106: 0
D107: 19.2 | E107: 12 | F107: 10 | G107: 8 | H107: 6 | I107: 4 | J107: 2 | K107: 4.824429495
D108: 19.4 | E108: 12 | F108: 10 | G108: 8 | H108: 6 | I108: 4 | J108: 2 | K108: 5.092019001
D109: 19.6 | E109: 12 | F109: 10 | G109: 8 | H109: 6 | I109: 4 | J109: 2 | K109: 5.381966011
D110: 19.8 | E110: 12 | F110: 10 | G110: 8 | H110: 6 | I110: 4 | J110: 2 | K110: 5.68713107
D111: 20 | E111: 12 | F111: 10 | G111: 8 | H111: 6 | I111: 4 | J111: 2 | K111: 6
D112: 20.2 | E112: 12 | F112: 10 | G112: 8 | H112: 6 | I112: 4 | J112: 2
D113: 20.4 | E113: 12 | F113: 10 | G113: 8 | H113: 6 | I113: 4 | J113: 2
D114: 20.6 | E114: 12 | F114: 10 | G114: 8 | H114: 6 | I114: 4 | J114: 2
D115: 20.8 | E115: 12 | F115: 10 | G115: 8 | H115: 6 | I115: 4 | J115: 2
D116: 21 | E116: 12 | F116: 10 | G116: 8 | H116: 6 | I116: 4 | J116: 2
D117: 21.2 | E117: 12 | F117: 10 | G117: 8 | H117: 6 | I117: 4 | J117: 2
D118: 21.4 | E118: 12 | F118: 10 | G118: 8 | H118: 6 | I118: 4 | J118: 2

Sheet Sheet4
A1: |vin|= | B1: 0.1
A2: f = | B2: 200 | AF2: vs | AJ2: Vin | AM2: vd | AQ2: Ob | AT2: O1 | AW2: Oa
A3: T = | B3: =1/B2 -> 0.005 | C3: VDD = | D3: 15 | AE3: =IF(VgsQ-vin>=Vp,VgsQ-vin,Vp) -> -0.7242694503 | AF3: =IF(VgsQ-vin>=Vp,Idss*(1-(VgsQ-vin)/Vp)^2,0) -> 0.004882465307 | AI3: =VgsQ -> -0.6242694503 | AJ3: =D16 -> 0.005677903636 | AL3: =IF(VgsQ+vin<=0,VgsQ+vin,0) -> -0.5242694503 | AM3: =Idss*(1-(VgsQ+vin)/Vp)^2 -> 0.006533341966 | AP3: =IF(VgsQ-vin>=Vp,VgsQ-vin,Vp) -> -0.7242694503 | AQ3: =Idss*(1-AP3/Vp)^2 -> 0.004882465307 | AS3: =VgsQ -> -0.6242694503 | AT3: =D16 -> 0.005677903636 | AV3: =IF(VgsQ+vin<=0,VgsQ+vin,0) -> -0.5242694503 | AW3: =IF(Idss*(1-AV3/Vp)^2<=Idss,Idss*(1-AV3/Vp)^2,Idss) -> 0.006533341966
C4: RD = | D4: 1200 | AE4: =AE3 -> -0.7242694503 | AF4: =-T -> -0.005 | AI4: =VgsQ -> -0.6242694503 | AJ4: =-B3-0.2*B3 -> -0.006 | AL4: =IF(VgsQ+vin<=0,VgsQ+vin,0) -> -0.5242694503 | AM4: =-T -> -0.005 | AP4: =AS50 -> 1.25 | AQ4: =AQ3 -> 0.004882465307 | AS4: =AS50+0.2*AS50 -> 1.5 | AT4: =D16 -> 0.005677903636 | AV4: =AS50 -> 1.25 | AW4: =AW3 -> 0.006533341966
C5: RS = | D5: 109.9471725 | AF5: vsout | AH5: bk | AJ5: Vout | AM5: vdout | AO5: bk | AQ5: ob | AT5: o2 | AW5: oa
C6: Vp = | D6: -2 | AE6: =AV7 -> 6.53572019 | AF6: =AW3 -> 0.006533341966 | AG6: =BE11 -> 6.57172019 | AH6: =BC10 -> 0.006503341966 | AI6: =Vdd-(Rs+Rd)*Idq -> 7.562246186 | AJ6: =Idq -> 0.005677903636 | AL6: =AP7 -> 8.516772182 | AM6: =AQ3 -> 0.004882465307 | AN6: =BD11 -> 8.552772182 | AO6: =BA10 -> 0.004852465307 | AP6: -5 | AQ6: =AQ3 -> 0.004882465307 | AS6: -5 | AT6: =AT3 -> 0.005677903636 | AV6: -5 | AW6: =AW3 -> 0.006533341966
C7: IDSS = | D7: 0.012 | Y7: 0 | Z7: passo | AC7: Passo | AE7: =AE6 -> 6.53572019 | AF7: =AJ50 -> -0.005 | AG7: =BE11 -> 6.57172019 | AH7: =AF7 -> -0.005 | AI7: =AI6 -> 7.562246186 | AJ7: =AF7+AF7*0.2 -> -0.006 | AL7: =AL6 -> 8.516772182 | AM7: =AF7 -> -0.005 | AN7: =BD11 -> 8.552772182 | AO7: =AM7 -> -0.005 | AP7: =IF(VdsQ+Rd*Idq-Rd*AQ6>=0,VdsQ+Rd*Idq-Rd*AQ6,0) -> 8.516772182 | AQ7: =AQ6 -> 0.004882465307 | AS7: =Vdd-(Rs+Rd)*AT6 -> 7.562246186 | AT7: =AT6 -> 0.005677903636 | AV7: =IF(VdsQ+Rd*Idq-Rd*AW6>=0,VdsQ+Rd*Idq-Rd*AW6,0) -> 6.53572019 | AW7: =AW6 -> 0.006533341966
C8: a = | D8: =Rs^2*Idss/Vp^2 -> 36.26514219 | Y8: 1 | Z8: 0.1 | AC8: 0.2
C9: b = | D9: =(2*Rs*Idss/Vp-1) -> -2.319366069 | Y9: 2 | Z9: VGS | AA9: RETTA IN | AB9: PARABOLA | AC9: VDS | AE9: RETTA STAT | AF9: RETTA DIN | AI9: vin = vgs | AJ9: ty | AL9: vout sen | AM9: vout reale | AO9: Più reale | AP9: MOLTIPL. | AQ9: 250 | AS9: tx | AT9: id sen | AV9: id reale | AX9: 1.5 | AY9: tangente | BA9: obtg | BC9: oatg | BF9: ohmico/lineare
C10: c = | D10: =Idss -> 0.012 | Y10: 3 | Z10: =IF(-Y7*$Z$8>=Vp,-Y7*$Z$8,NA()) -> 0 | AA10: =IF(ISNA(Z10),NA(),-1/Rs*Z10) -> 0 | AB10: =IF(ISNA(Z10),NA(),Idss*(1-Z10/Vp)^2) -> 0.012 | AC10: =Y7*$AC$8 -> 0 | AE10: =IF(-1/(Rs+Rd)*AC10+Vdd/(Rs+Rd)<0,NA(),-1/(Rs+Rd)*AC10+Vdd/(Rs+Rd)) -> 0.01145084345 | AF10: =IF(-1/Rd*(AC10-VdsQ)+Idq<0,NA(),-1/Rd*(AC10-VdsQ)+Idq) -> 0.01197977546 | AI10: =IF(VgsQ-vin*SIN(2*PI()*f*AJ10)<Vp,Vp,IF(VgsQ-vin*SIN(2*PI()*f*AJ10)>0,0,VgsQ-vin*SIN(2*PI()*f*AJ10))) -> -0.6242694503 | AJ10: 0 | AL10: =VdsQ+(gm*Rd*vin)*SIN(2*PI()*$B$2*AJ10) -> 7.562246186 | AM10: =IF(-Rd*AV10+VdsQ+Rd*Idq>=0,-Rd*AV10+VdsQ+Rd*Idq,0) -> 7.562246186 | AO10: =IF(-Rd*AV10+VdsQ+Rd*Idq>=ABS(Vp*SQRT(AV10/Idss)),-Rd*AV10+VdsQ+Rd*Idq,(VdsQ/Rd+Idq)/(Idss/(-Vp)+Rd^-1)) -> 7.562246186 | AS10: 0 | AT10: =Idq+(gm*vin)*SIN(2*PI()*f/$AQ$9*AS10) -> 0.005677903636 | AV10: =Idss*(1-AI10/Vp)^2 -> 0.005677903636 | AX10: =VgsQ-AX9 -> -2.12426945 | AY10: =Idq-AX9*gm -> -0.006703671311 | AZ10: =VgsQ-vin -> -0.7242694503 | BA10: =Idq-vin*gm -> 0.004852465307 | BB10: =VgsQ+vin -> -0.5242694503 | BC10: =Idq+vin*gm -> 0.006503341966 | BD10: -5 | BE10: -5 | BF10: =Idss/Vp^2*AC10^2 -> 0
Y11: 4 | Z11: -0.1 | AA11: 0.0009095277102 | AB11: 0.01083 | AC11: 0.2 | AE11: 0.01129816554 | AF11: 0.01181310879 | AI11: -0.6086260038 | AJ11: =AJ10-$B$3/40 -> -0.000125 | AL11: 7.407293782 | AM11: 7.406412799 | AO11: 7.406412799 | AS11: =AS10+($AQ$9*T)/40 -> 0.03125 | AT11: 0.00580703064 | AV11: 0.005807764792 | AX11: =VgsQ+AX9 -> 0.8757305497 | AY11: =Idq+AX9*gm -> 0.01805947858 | AZ11: =AS50 -> 1.25 | BA11: =Idq-vin*gm -> 0.004852465307 | BB11: =AZ11 -> 1.25 | BC11: =Idq+vin*gm -> 0.006503341966 | BD11: =VdsQ+Rd*Idq-Rd*BA10 -> 8.552772182 | BE11: =VdsQ+Rd*Idq-Rd*BC10 -> 6.57172019 | BF11: 0.00012
Y12: 5 | Z12: -0.2 | AA12: 0.00181905542 | AB12: 0.00972 | AC12: 0.4 | AE12: 0.01114548763 | AF12: 0.01164644212 | AI12: -0.5933677508 | AJ12: =AJ11-$B$3/40 -> -0.00025 | AL12: 7.25615682 | AM12: 7.252719126 | AO12: 7.252719126 | AS12: 0.0625 | AT12: 0.005932978108 | AV12: 0.005935842853 | BF12: 0.00048
Y13: 6 | Z13: -0.3 | AA13: 0.002728583131 | AB13: 0.00867 | AC13: 0.6 | AE13: 0.01099280971 | AF13: 0.01147977546 | AI13: -0.5788704003 | AJ13: -0.000375 | AL13: 7.112556794 | AM13: 7.105136929 | AO13: 7.105136929 | AS13: 0.09375 | AT13: 0.006052644796 | AV13: 0.006058828017 | BF13: 0.00108
Y14: 7 | Z14: -0.4 | AA14: 0.003638110841 | AB14: 0.00768 | AC14: 0.8 | AE14: 0.0108401318 | AF14: 0.01131310879 | AI14: -0.565490925 | AJ14: -0.0005 | AL14: 6.980029614 | AM14: 6.96759192 | AO14: 6.96759192 | AS14: 0.125 | AT14: 0.006163084113 | AV14: 0.006173448858 | BF14: 0.00192
C15: ID1 = | D15: =(-b+SQRT(b^2-4*a*ci))/(2*a) -> 0.05827789329 | Y15: 8 | Z15: -0.5 | AA15: 0.004547638551 | AB15: 0.00675 | AC15: 1 | AE15: 0.01068745389 | AF15: 0.01114644212 | AI15: -0.5535587722 | AJ15: -0.000625 | AL15: 6.861838538 | AM15: 6.843838538 | AO15: 6.843838538 | AS15: 0.15625 | AT15: 0.006261576677 | AV15: 0.006276576677 | BF15: 0.003
C16: IDQ = | D16: =(-b-SQRT(b^2-4*a*ci))/(2*a) -> 0.005677903636 | Y16: 9 | Z16: -0.6 | AA16: 0.005457166261 | AB16: 0.00588 | AC16: 1.2 | AE16: 0.01053477597 | AF16: 0.01097977546 | AI16: -0.5433677508 | AJ16: -0.00075 | AL16: 6.760893822 | AM16: 6.737331516 | AO16: 6.737331516 | AS16: 0.1875 | AT16: 0.006345697273 | AV16: 0.006365332528 | BF16: 0.00432
C17: VGSQ = -RSID2 = | D17: =-Rs*D16 -> -0.6242694503 | Y17: 10 | Z17: -0.7 | AA17: 0.006366693971 | AB17: 0.00507 | AC17: 1.4 | AE17: 0.01038209806 | AF17: 0.01081310879 | AI17: -0.5351687979 | AJ17: -0.000875 | AL17: 6.679681061 | AM17: 6.651100927 | AO17: 6.651100927 | AS17: 0.21875 | AT17: 0.006413374574 | AV17: 0.006437191352 | BF17: 0.00588
C18: VDSQ = VDD-(RD+RS)ID2 = | D18: =D3-(Rd+Rs)*D16 -> 7.562246186 | Y18: 11 | Z18: -0.8 | AA18: 0.007276221681 | AB18: 0.00432 | AC18: 1.6 | AE18: 0.01022942015 | AF18: 0.01064644212 | AI18: -0.5291637986 | AJ18: -0.001 | AL18: 6.620199983 | AM18: 6.587637677 | AO18: 6.587637677 | AS18: 0.25 | AT18: 0.006462942139 | AV18: 0.006490077394 | BF18: 0.00768
C19: G = | D19: =(AL6-AE6)/vin/2 -> 9.905259958 | Y19: 12 | Z19: -0.9 | AA19: 0.008185749392 | AB19: 0.00363 | AC19: 1.8 | AE19: 0.01007674224 | AF19: 0.01047977546 | AI19: -0.5255006162 | AJ19: -0.001125 | AL19: 6.583915209 | AM19: 6.548796192 | AO19: 6.548796192 | AS19: 0.28125 | AT19: 0.006493179451 | AV19: 0.006522445298 | BF19: 0.00972
C20: gm = | D20: =-2*Idss/Vp*(1-VgsQ/Vp) -> 0.008254383298 | Y20: 13 | Z20: -1 | AA20: 0.009095277102 | AB20: 0.003 | AC20: 2 | AE20: 0.009924064324 | AF20: 0.01031310879 | AI20: -0.5242694503 | AJ20: -0.00125 | AL20: 6.57172019 | AM20: 6.53572019 | AO20: 6.53572019 | AS20: 0.3125 | AT20: 0.006503341966 | AV20: 0.006533341966 | BF20: 0.012
C21: gmRD = | D21: =gm*Rd -> 9.905259958 | Y21: 14 | Z21: -1.1 | AA21: 0.01000480481 | AB21: 0.00243 | AC21: 2.2 | AE21: 0.009771386411 | AF21: 0.01014644212 | AI21: -0.5255006162 | AJ21: -0.001375 | AL21: 6.583915209 | AM21: 6.548796192 | AO21: 6.548796192 | AS21: 0.34375 | AT21: 0.006493179451 | AV21: 0.006522445298 | BF21: 0.01452
Y22: 15 | Z22: -1.2 | AA22: 0.01091433252 | AB22: 0.00192 | AC22: 2.4 | AE22: 0.009618708498 | AF22: 0.009979775458 | AI22: -0.5291637986 | AJ22: -0.0015 | AL22: 6.620199983 | AM22: 6.587637677 | AO22: 6.587637677 | AS22: 0.375 | AT22: 0.006462942139 | AV22: 0.006490077394 | BF22: 0.01728
Y23: 16 | Z23: -1.3 | AA23: 0.01182386023 | AB23: 0.00147 | AC23: 2.6 | AE23: 0.009466030586 | AF23: 0.009813108791 | AI23: -0.5351687979 | AJ23: -0.001625 | AL23: 6.679681061 | AM23: 6.651100927 | AO23: 6.651100927 | AS23: 0.40625 | AT23: 0.006413374574 | AV23: 0.006437191352 | BF23: 0.02028
Y24: 17 | Z24: -1.4 | AA24: 0.01273338794 | AB24: 0.00108 | AC24: 2.8 | AE24: 0.009313352673 | AF24: 0.009646442125 | AI24: -0.5433677508 | AJ24: -0.00175 | AL24: 6.760893822 | AM24: 6.737331516 | AO24: 6.737331516 | AS24: 0.4375 | AT24: 0.006345697273 | AV24: 0.006365332528 | BF24: 0.02352
Y25: 18 | Z25: -1.5 | AA25: 0.01364291565 | AB25: 0.00075 | AC25: 3 | AE25: 0.00916067476 | AF25: 0.009479775458 | AI25: -0.5535587722 | AJ25: -0.001875 | AL25: 6.861838538 | AM25: 6.843838538 | AO25: 6.843838538 | AS25: 0.46875 | AT25: 0.006261576677 | AV25: 0.006276576677 | BF25: 0.027
Y26: 19 | Z26: -1.6 | AA26: 0.01455244336 | AB26: 0.00048 | AC26: 3.2 | AE26: 0.009007996848 | AF26: 0.009313108791 | AI26: -0.565490925 | AJ26: -0.002 | AL26: 6.980029614 | AM26: 6.96759192 | AO26: 6.96759192 | AS26: 0.5 | AT26: 0.006163084113 | AV26: 0.006173448858 | BF26: 0.03072
Y27: 20 | Z27: -1.7 | AA27: 0.01546197107 | AB27: 0.00027 | AC27: 3.4 | AE27: 0.008855318935 | AF27: 0.009146442125 | AI27: -0.5788704003 | AJ27: -0.002125 | AL27: 7.112556794 | AM27: 7.105136929 | AO27: 7.105136929 | AS27: 0.53125 | AT27: 0.006052644796 | AV27: 0.006058828017 | BF27: 0.03468
Y28: 21 | Z28: -1.8 | AA28: 0.01637149878 | AB28: 0.00012 | AC28: 3.6 | AE28: 0.008702641022 | AF28: 0.008979775458 | AI28: -0.5933677508 | AJ28: -0.00225 | AL28: 7.25615682 | AM28: 7.252719126 | AO28: 7.252719126 | AS28: 0.5625 | AT28: 0.005932978108 | AV28: 0.005935842853 | BF28: 0.03888
Y29: 22 | Z29: -1.9 | AA29: 0.01728102649 | AB29: 3e-05 | AC29: 3.8 | AE29: 0.00854996311 | AF29: 0.008813108791 | AI29: -0.6086260038 | AJ29: -0.002375 | AL29: 7.407293782 | AM29: 7.406412799 | AO29: 7.406412799 | AS29: 0.59375 | AT29: 0.00580703064 | AV29: 0.005807764792 | BF29: 0.04332
Y30: 23 | Z30: -2 | AA30: 0.0181905542 | AB30: 0 | AC30: 4 | AE30: 0.008397285197 | AF30: 0.008646442125 | AI30: -0.6242694503 | AJ30: -0.0025 | AL30: 7.562246186 | AM30: 7.562246186 | AO30: 7.562246186 | AS30: 0.625 | AT30: 0.005677903636 | AV30: 0.005677903636 | BF30: 0.048
Y31: 24 | AC31: 4.2 | AE31: 0.008244607284 | AF31: 0.008479775458 | AI31: -0.6399128968 | AJ31: -0.002625 | AL31: =VdsQ+(gm*Rd*vin)*SIN(2*PI()*$B$2*AJ31) -> 7.71719859 | AM31: =IF(-Rd*AV31+VdsQ+Rd*Idq>=0,-Rd*AV31+VdsQ+Rd*Idq,0) -> 7.716317608 | AO31: 7.716317608 | AS31: 0.65625 | AT31: 0.005548776633 | AV31: 0.005549510785 | BF31: 0.05292
Y32: 25 | AC32: 4.4 | AE32: 0.008091929372 | AF32: 0.008313108791 | AI32: -0.6551711497 | AJ32: -0.00275 | AL32: 7.868335552 | AM32: 7.864897858 | AO32: 7.864897858 | AS32: 0.6875 | AT32: 0.005422829165 | AV32: 0.00542569391 | BF32: 0.05808
Y33: 26 | AC33: 4.6 | AE33: 0.007939251459 | AF33: 0.008146442125 | AI33: -0.6696685002 | AJ33: -0.002875 | AL33: 8.011935578 | AM33: 8.004515712 | AO33: 8.004515712 | AS33: 0.71875 | AT33: 0.005303162476 | AV33: 0.005309345698 | BF33: 0.06348
Y34: 27 | AC34: 4.8 | AE34: 0.007786573546 | AF34: 0.007979775458 | AI34: -0.6830479755 | AJ34: -0.003 | AL34: 8.144462758 | AM34: 8.132025064 | AO34: 8.132025064 | AS34: 0.75 | AT34: 0.005192723159 | AV34: 0.005203087904 | BF34: 0.06912
Y35: 28 | AC35: 5 | AE35: 0.007633895634 | AF35: 0.007813108791 | AI35: -0.6949801284 | AJ35: -0.003125 | AL35: 8.262653835 | AM35: 8.244653835 | AO35: 8.244653835 | AS35: 0.78125 | AT35: 0.005094230596 | AV35: 0.005109230596 | BF35: 0.075
Y36: 29 | AC36: 5.2 | AE36: 0.007481217721 | AF36: 0.007646442125 | AI36: -0.7051711497 | AJ36: -0.00325 | AL36: 8.36359855 | AM36: 8.340036244 | AO36: 8.340036244 | AS36: 0.8125 | AT36: 0.00501011 | AV36: 0.005029745255 | BF36: 0.08112
Y37: 30 | AC37: 5.4 | AE37: 0.007328539808 | AF37: 0.007479775458 | AI37: -0.7133701027 | AJ37: -0.003375 | AL37: 8.444811311 | AM37: 8.416231176 | AO37: 8.416231176 | AS37: 0.84375 | AT37: 0.004942432699 | AV37: 0.004966249478 | BF37: 0.08748
Y38: 31 | AC38: 5.6 | AE38: 0.007175861896 | AF38: 0.007313108791 | AI38: -0.7193751019 | AJ38: -0.0035 | AL38: 8.504292389 | AM38: 8.471730083 | AO38: 8.471730083 | AS38: 0.875 | AT38: 0.004892865134 | AV38: 0.004920000389 | BF38: 0.09408
Y39: 32 | AC39: 5.8 | AE39: 0.007023183983 | AF39: 0.007146442125 | AI39: -0.7230382843 | AJ39: -0.003625 | AL39: 8.540577163 | AM39: 8.505458146 | AO39: 8.505458146 | AS39: 0.90625 | AT39: 0.004862627822 | AV39: 0.00489189367 | BF39: 0.10092
Y40: 33 | AC40: 6 | AE40: 0.00687050607 | AF40: 0.006979775458 | AI40: -0.7242694503 | AJ40: -0.00375 | AL40: 8.552772182 | AM40: 8.516772182 | AO40: 8.516772182 | AS40: 0.9375 | AT40: 0.004852465307 | AV40: 0.004882465307 | BF40: 0.108
Y41: 34 | AC41: 6.2 | AE41: 0.006717828158 | AF41: 0.006813108791 | AI41: -0.7230382843 | AJ41: -0.003875 | AL41: 8.540577163 | AM41: 8.505458146 | AO41: 8.505458146 | AS41: 0.96875 | AT41: 0.004862627822 | AV41: 0.00489189367 | BF41: 0.11532
Y42: 35 | Z42: =IF(-Y39*$Z$8>=Vp,-Y39*$Z$8,NA()) ->  | AA42: =IF(ISNA(Z42),NA(),-1/Rs*Z42) ->  | AB42: =IF(ISNA(Z42),NA(),Idss*(1-Z42/Vp)^2) ->  | AC42: =Y39*$AC$8 -> 6.4 | AE42: =IF(-1/(Rs+Rd)*AC42+Vdd/(Rs+Rd)<0,NA(),-1/(Rs+Rd)*AC42+Vdd/(Rs+Rd)) -> 0.006565150245 | AF42: =IF(-1/Rd*(AC42-VdsQ)+Idq<0,NA(),-1/Rd*(AC42-VdsQ)+Idq) -> 0.006646442125 | AI42: -0.7193751019 | AJ42: -0.004 | AL42: 8.504292389 | AM42: 8.471730083 | AO42: 8.471730083 | AS42: 1 | AT42: 0.004892865134 | AV42: 0.004920000389 | BF42: =Idss/Vp^2*AC42^2 -> 0.12288
Y43: 36 | AC43: 6.6 | AE43: 0.006412472332 | AF43: 0.006479775458 | AI43: -0.7133701027 | AJ43: -0.004125 | AL43: 8.444811311 | AM43: 8.416231176 | AO43: 8.416231176 | AS43: 1.03125 | AT43: 0.004942432699 | AV43: 0.004966249478 | BF43: 0.13068
Y44: 37 | AC44: 6.8 | AE44: 0.00625979442 | AF44: 0.006313108791 | AI44: -0.7051711497 | AJ44: -0.00425 | AL44: 8.36359855 | AM44: 8.340036244 | AO44: 8.340036244 | AS44: 1.0625 | AT44: 0.00501011 | AV44: 0.005029745255 | BF44: 0.13872
Y45: 38 | AC45: 7 | AE45: 0.006107116507 | AF45: 0.006146442125 | AI45: -0.6949801284 | AJ45: -0.004375 | AL45: 8.262653835 | AM45: 8.244653835 | AO45: 8.244653835 | AS45: 1.09375 | AT45: 0.005094230596 | AV45: 0.005109230596 | BF45: 0.147
Y46: 39 | AC46: 7.2 | AE46: 0.005954438594 | AF46: 0.005979775458 | AI46: -0.6830479755 | AJ46: -0.0045 | AL46: 8.144462758 | AM46: 8.132025064 | AO46: 8.132025064 | AS46: 1.125 | AT46: 0.005192723159 | AV46: 0.005203087904 | BF46: 0.15552
Y47: 40 | AC47: 7.4 | AE47: 0.005801760682 | AF47: 0.005813108791 | AI47: -0.6696685002 | AJ47: -0.004625 | AL47: 8.011935578 | AM47: 8.004515712 | AO47: 8.004515712 | AS47: 1.15625 | AT47: 0.005303162476 | AV47: 0.005309345698 | BF47: 0.16428
Y48: 41 | AC48: 7.6 | AE48: 0.005649082769 | AF48: 0.005646442125 | AI48: -0.6551711497 | AJ48: -0.00475 | AL48: 7.868335552 | AM48: 7.864897858 | AO48: 7.864897858 | AS48: 1.1875 | AT48: 0.005422829165 | AV48: 0.00542569391 | BF48: 0.17328
Y49: 42 | AC49: 7.8 | AE49: 0.005496404856 | AF49: 0.005479775458 | AI49: -0.6399128968 | AJ49: -0.004875 | AL49: 7.71719859 | AM49: 7.716317608 | AO49: 7.716317608 | AS49: 1.21875 | AT49: 0.005548776633 | AV49: 0.005549510785 | BF49: 0.18252
Y50: 43 | AC50: 8 | AE50: 0.005343726944 | AF50: 0.005313108791 | AI50: =IF(VgsQ-vin*SIN(2*PI()*f*AJ50)<Vp,Vp,IF(VgsQ-vin*SIN(2*PI()*f*AJ50)>0,0,VgsQ-vin*SIN(2*PI()*f*AJ50))) -> -0.6242694503 | AJ50: =AJ49-$B$3/40 -> -0.005 | AL50: 7.562246186 | AM50: 7.562246186 | AO50: 7.562246186 | AS50: 1.25 | AT50: 0.005677903636 | AV50: 0.005677903636 | BF50: 0.192
Y51: 44 | AC51: 8.2 | AE51: 0.005191049031 | AF51: 0.005146442125 | BF51: 0.20172
Y52: 45 | AC52: 8.4 | AE52: 0.005038371118 | AF52: 0.004979775458 | BF52: 0.21168
Y53: 46 | AC53: 8.6 | AE53: 0.004885693205 | AF53: 0.004813108791 | BF53: 0.22188
Y54: 47 | AC54: 8.8 | AE54: 0.004733015293 | AF54: 0.004646442125 | BF54: 0.23232
Y55: 48 | AC55: 9 | AE55: 0.00458033738 | AF55: 0.004479775458 | BF55: 0.243
Y56: 49 | AC56: 9.2 | AE56: 0.004427659467 | AF56: 0.004313108791 | BF56: 0.25392
Y57: 50 | AC57: 9.4 | AE57: 0.004274981555 | AF57: 0.004146442125 | BF57: 0.26508
Y58: 51 | AC58: 9.6 | AE58: 0.004122303642 | AF58: 0.003979775458 | BF58: 0.27648
Y59: 52 | AC59: 9.8 | AE59: 0.003969625729 | AF59: 0.003813108791 | BF59: 0.28812
Y60: 53 | AC60: 10 | AE60: 0.003816947817 | AF60: 0.003646442125 | BF60: 0.3
Y61: 54 | AC61: 10.2 | AE61: 0.003664269904 | AF61: 0.003479775458 | BF61: 0.31212
Y62: 55 | AC62: 10.4 | AE62: 0.003511591991 | AF62: 0.003313108791 | BF62: 0.32448
Y63: 56 | AC63: 10.6 | AE63: 0.003358914079 | AF63: 0.003146442125 | BF63: 0.33708
Y64: 57 | AC64: 10.8 | AE64: 0.003206236166 | AF64: 0.002979775458 | BF64: 0.34992
Y65: 58 | AC65: 11 | AE65: 0.003053558253 | AF65: 0.002813108791 | BF65: 0.363
Y66: 59 | AC66: 11.2 | AE66: 0.002900880341 | AF66: 0.002646442125 | BF66: 0.37632
Y67: 60 | AC67: 11.4 | AE67: 0.002748202428 | AF67: 0.002479775458 | BF67: 0.38988
Y68: 61 | AC68: 11.6 | AE68: 0.002595524515 | AF68: 0.002313108791 | BF68: 0.40368
Y69: 62 | AC69: 11.8 | AE69: 0.002442846603 | AF69: 0.002146442125 | BF69: 0.41772
Y70: 63 | AC70: 12 | AE70: 0.00229016869 | AF70: 0.001979775458 | BF70: 0.432
Y71: 64 | AC71: 12.2 | AE71: 0.002137490777 | AF71: 0.001813108791 | BF71: 0.44652
Y72: 65 | AC72: 12.4 | AE72: 0.001984812865 | AF72: 0.001646442125 | BF72: 0.46128
Y73: 66 | AC73: 12.6 | AE73: 0.001832134952 | AF73: 0.001479775458 | BF73: 0.47628
Y74: 67 | Z74: =IF(-Y71*$Z$8>=Vp,-Y71*$Z$8,NA()) ->  | AA74: =IF(ISNA(Z74),NA(),-1/Rs*Z74) ->  | AB74: =IF(ISNA(Z74),NA(),Idss*(1-Z74/Vp)^2) ->  | AC74: =Y71*$AC$8 -> 12.8 | AE74: =IF(-1/(Rs+Rd)*AC74+Vdd/(Rs+Rd)<0,NA(),-1/(Rs+Rd)*AC74+Vdd/(Rs+Rd)) -> 0.001679457039 | AF74: =IF(-1/Rd*(AC74-VdsQ)+Idq<0,NA(),-1/Rd*(AC74-VdsQ)+Idq) -> 0.001313108791 | BF74: =Idss/Vp^2*AC74^2 -> 0.49152
Y75: 68 | AC75: =Y72*$AC$8 -> 13 | AE75: 0.001526779127 | AF75: 0.001146442125 | BF75: 0.507
Y76: 69 | AC76: 13.2 | AE76: 0.001374101214 | AF76: 0.0009797754581 | BF76: 0.52272
Y77: 70 | AC77: 13.4 | AE77: 0.001221423301 | AF77: 0.0008131087914 | BF77: 0.53868
Y78: 71 | AC78: 13.6 | AE78: 0.001068745389 | AF78: 0.0006464421248 | BF78: 0.55488
Y79: 72 | AC79: 13.8 | AE79: 0.000916067476 | AF79: 0.0004797754581 | BF79: 0.57132
Y80: 73 | AC80: 14 | AE80: 0.0007633895634 | AF80: 0.0003131087914 | BF80: 0.588
Y81: 74 | AC81: 14.2 | AE81: 0.0006107116507 | AF81: 0.0001464421248 | BF81: 0.60492
Y82: 75 | AC82: 14.4 | AE82: 0.000458033738 | BF82: 0.62208
Y83: 76 | AC83: 14.6 | AE83: 0.0003053558253 | BF83: 0.63948
Y84: 77 | AC84: 14.8 | AE84: 0.0001526779127 | BF84: 0.65712
Y85: 78 | AC85: 15 | BF85: 0.675
Y86: 79 | AC86: 15.2 | BF86: 0.69312
Y87: 80 | AC87: 15.4 | BF87: 0.71148
Y88: 81 | AC88: 15.6 | BF88: 0.73008
Y89: 82 | AC89: 15.8 | BF89: 0.74892
Y90: 83 | AC90: 16 | BF90: 0.768
